Workbook

Sheet Einfuehrung
C3: Lernmodul M 04:
C4: Betriebswirtschaftliche Kennzahlen
C6: Thema: Kennzahlen-Simulation
C8: 1. Einführung
C10: Ein wichtiges Anliegen der Bildung, Berechnung und Auswertung betriebswirtschaftlicher Kennzahlen sollte
C11: – wo immer möglich und sinnvoll – darin bestehen, ein rechenfähiges Modell zu erstellen, das die Beziehungen
C12: zwischen den einzelnen Komponten der jeweiligen Kennzahl bzw. des jeweiligen Kennzahlensystems in mathe-
C13: matischer Ausdrucksweise beschreibt, so dass es möglich ist, mit dem Modell Experimente in folgender Weise
C14: duchzuführen:
C15: Man ändert den Wert eines Parameters xi und verfolgt - bei unveränderten Werten der anderen Parameter - , welche
C16: qualitative und quantitative Auswirkung diese Änderung auf die definierte Zielgröße im Modell hat. Dann kann der
C17: Wert eines anderen Parameters geändert werden, und wieder wird verfolgt, welche Wirkung dies auf die Zielgröße
C18: hat usw. Dies entspricht dem Konzept der Vorbereitung, Durchführung und Auswertung eines Modellexperiments:
C40: Im hier betrachteten Fallbeispiel geht es um die Erstellung eines Modells, das all jene Ursache-Wirkung-Zusammen-
C41: hänge qualitativ und quantitativ erfasst, die im Unternehmensprozess die Beziehungen zwischen
D42: a) der Kapitalausstattung, der Produktivität und der Kostenintensität einerseits auf
D43: die Outputgrößen des Betriebsprozesses (Leistung, Umsatzerlöse, EBIT u. a.) anderseits reflektieren, und damit
D44: b) die Ermittlung des Ertragswertes eines Unternehmens erlauben.
C46: Dieses Modell soll dann Grundlage für eine zeitdiskrete Simulation der abgebildeten Zusammenhänge über
C47: mehrere Geschäftsjahre bilden.
C48: Bei dieser Simulation soll sichtbar gemacht werden, welche Folgewirkungen bei den Zielgrößen "Umsatzerlöse",
C49: "EBIT", "Gewinn nach Steuern" u. a. eintreten, wenn die Werte der Inputgrößen ("Kapital- und Personaleinsatz")
C50: sowie der Steuergrößen (wie "Produktivität", "Kostensenkung" u. a.) verändert werden bzw. wenn mit Verände-
C51: rungen externer Einflussgrößen wie "Zinssatz" für die Aufnahme von Fremdkapital oder "Steuersatz" bei den
C52: Gewinnsteuern eintreten.
C53: Damit die Ursache-Wirkung-Zusammenhänge auch stets nachvollzogen werden können, ist es notwendig und
C54: zweckmäßig, die inhaltlichen Zusammenhänge zwischen den Modellparametern nicht nur formelmäßig anzugeben,
C55: sondern zugleich auch in einem kybernetischen Blockschaltbild zu visualisieren.
C56: Siehe auch:
D57: von Känel, S.: Arbeitsbuch zu "Betriebswirtschaftslehre", Springer-Gabler-Verlag.

Sheet Modell_A
C3: =Einfuehrung!C3 -> Lernmodul M 04:
C4: =Einfuehrung!C4 -> Betriebswirtschaftliche Kennzahlen
C6: =Einfuehrung!C6 -> Thema: Kennzahlen-Simulation
C8: 2. Modell (Signalflussdiagramm)
C10: Ziel: Ermittlung des Ertragswertes EW für den Fall, dass die Lebensdauer des Unternehmens
C11: auf n Jahre begrenzt ist, wobei jedes Jahr ein unterschiedlicher Gewinn realisiert wird.
C13: Aufgabe:
C14: Anhand der voreingestellten Werte für die Ausgangswerte und Steuerparameter sind die Werte für die restlichen Größen (mit
C15: Zellverknüpfung) formelmäßig zu bestimmen und einzutragen. Beachten Sie die eingefügten Kommentare!
H19: EK [TEUR] | K19: Ap
E20: Anteil | K20: 300
E21: EK [%]
E22: 30 | H22: Personal | N22: Leistung
H23: 30
E25: Kapital C [TEUR] | P25: Markt | R25: Kunde
E26: 5000
H31: FK [TEUR]
L32: Kostensatz | R32: Erlöse aus
L33: 90 | R33: Umsatz [TEUR/a]
I34: Zinssatz
I35: 6 | N35: Kosten
R39: EBIT [TEUR/a]
N42: Zinsen
E45: Formel für die Berechnung des Ertragswertes:
N46: EBT
R48: 30
R50: Steuern
Q54: Gewinn G nach
Q55: Steuern [TEUR/a]

Sheet Modell_L (hidden)
C3: =Einfuehrung!C3 -> Lernmodul M 04:
C4: =Einfuehrung!C4 -> Betriebswirtschaftliche Kennzahlen
C6: =Einfuehrung!C6 -> Thema: Kennzahlen-Simulation
C8: 2. Modell (Signalflussdiagramm)
C10: Ermittlung des Ertragswertes EW für den Fall, dass die Lebensdauer des Unternehmens
C11: auf n Jahre begrenzt ist, wobei jedes Jahr ein unterschiedlicher Gewinn realisiert wird.
C13: Musterlösung zur Aufgabe:
C14: In dieser Modelldarstellung sind an den Ausgangsgößen und Steuerparametren "Drehfelder" eingefügt.
C15: Das ermöglicht die Werte der Größen mit Folgen für die Berechnungsgrößen in bestimmten Grenzen zu variieren!
H19: EK [TEUR] | K19: Ap
E20: Anteil | H20: =Kapital0*Anteil_EK/100 -> 1500 | K20: 300
E21: EK [%]
E22: 30 | H22: Personal | N22: Leistung
H23: 30 | N23: =Ap0*Pers0 -> 9000
E25: Kapital C [TEUR] | P25: Markt | R25: Kunde
E26: 5000
H31: FK [TEUR]
H32: =Kapital0-Eigenkapital0 -> 3500 | L32: Kostensatz | P32: =Leistung0 -> 9000 | R32: Erlöse aus
L33: 90 | R33: Umsatz [TEUR/a]
I34: Zinssatz
I35: =J35/10 -> 6 | J35: 60 | N35: Kosten
N36: =Erloese0*Kostensatz0/100 -> 8100
P39: =Erloese0-Kosten0 -> 900 | R39: EBIT [TEUR/a]
N42: Zinsen
N43: =Fremdkapital0*Zinssatz0/100 -> 210
E45: Formel für die Berechnung des Ertragswertes:
N46: EBT | P46: =EBIT0-Zinsen0 -> 690
R48: 30
R50: Steuern
R51: =EBT0*Steuersatz0/100 -> 207
P54: =EBT0-Steuern0 -> 483 | Q54: Gewinn G nach
Q55: Steuern [TEUR/a]

Sheet EW_Simula1 (hidden)
C3: =Einfuehrung!C3 -> Lernmodul M 04:
C4: =Einfuehrung!C4 -> Betriebswirtschaftliche Kennzahlen
C6: =Einfuehrung!C6 -> Thema: Kennzahlen-Simulation
C8: 3. Zeitdiskrete Simuation der künftigen Unternehmensentwicklung
C10: Einstellung der Werte der wirkenden Steuergrößen:
E12: Produktivität | G12: Kostensatz | I12: Zinssatz | J12: simuliertes Zinsniveau
E13: akt. Niveau | G13: akt. Niveau | I13: akt. Niveau | J13: =IF(AND($I$16>0,$J$16>0),NORMINV(RAND(),$I$16,$J$16),0) -> 7.516259421 | K13: =IF(AND($I$16>0,$J$16>0),NORMINV(RAND(),$I$16,$J$16),0) -> 7.394910422 | L13: 8.077304713 | M13: 7.346516052 | N13: 7.851476065
E14: =Ap0 -> 300 | G14: =Kostensatz0 -> 90 | I14: =Zinssatz0 -> 6 | J14: =IF(AND($I$16>0,$J$16>0),NORMINV(RAND(),$I$16,$J$16),0) -> 6.970813564 | K14: 7.387747944 | L14: 7.393691863 | M14: 7.311074476 | N14: 7.484839176
E15: Steigerung um | G15: Senkung um | I15: Mittelwert | J15: Streuung | K15: 4
E16: 3 | G16: 2 | I16: =K16/10 -> 7.5 | J16: =K15/10 -> 0.4 | K16: 75
E17: % pro Jahr | G17: % pro Jahr | L17: Simulation fertig!
E18: Basisjahr: | F18: =YEAR(NOW())-8 -> 2014 | H18: Steuersatz | I18: =Steuersatz0 -> 30 | M18: 2
D19: Anteil EK = | F19: =Anteil_EK -> 30 | H19: [%]
H20: Zeitraum (Jahre): | K20: 8 | M20: 1
D21: Simulationstabelle
D22: t | E22: Jahr | F22: Produktivität | G22: Umsatz | H22: Kosten | I22: EBIT | J22: Zinsen | K22: EBT | L22: Gewinn | M22: 1/(1 + i)t | N22: EW (Barwert)
D23: 0 | E23: 2014 | F23: =Ap0 -> 300 | G23: =Pers0*Ap0 -> 9000 | H23: =G23*Kostensatz0/100 -> 8100 | I23: =G23-H23 -> 900 | J23: =Zinsen0 -> 210 | K23: =I23-J23 -> 690 | L23: =K23-Steuern0 -> 483 | M23: =1/(1+I14/100)^D23 -> 1 | N23: =L23/M23 -> 483
D24: =IF(D23<($D$23+SimZeit),D23+1,"") -> 1 | E24: 2015 | F24: =IF(D24<($D$23+SimZeit),Ap0*(1+aps/100)^D24,"") -> 309 | G24: =IF(D24<=SimZeit-1,Pers0*F24,"") -> 9270 | H24: =IF(D24<=SimZeit-1,Kosten0*(1-sks/100)^D24,"") -> 7938 | I24: =IF(D24<=SimZeit-1,G24-H24,"") -> 1332 | J24: =IF(D24<=SimZeit-1,Fremdkapital0*$J$13/100,"") -> 263.0690797 | K24: =IF(D24<=SimZeit-1,I24-J24,"") -> 1068.93092 | L24: =IF(D24<=SimZeit-1,K24-K24*Steuersatz0/100,"") -> 748.2516442 | M24: =IF(D24<=SimZeit-1,1/(1+$J$14/100)^D24,"") -> 0.9348344344 | N24: =IF(D24<=SimZeit-1,L24/M24,"") -> 800.4108713
D25: =IF(D24<($D$23+SimZeit-1),D24+1,"") -> 2 | E25: 2016 | F25: 318.27 | G25: 9548.1 | H25: 7779.24 | I25: 1768.86 | J25: =IF(D25<=SimZeit-1,Fremdkapital0*$K$13/100,"") -> 258.8218648 | K25: 1510.038135 | L25: 1057.026695 | M25: 0.8739154198 | N25: 1209.529745
D26: 3 | E26: 2017 | F26: 327.8181 | G26: 9834.543 | H26: 7623.6552 | I26: 2210.8878 | J26: =IF(D26<=SimZeit-1,Fremdkapital0*$L$13/100,"") -> 282.705665 | K26: 1928.182135 | L26: 1349.727495 | M26: 0.8169662272 | N26: 1652.121531
D27: 4 | E27: 2018 | F27: 337.652643 | G27: 10129.57929 | H27: 7471.182096 | I27: 2658.397194 | J27: =IF(D27<=SimZeit-1,Fremdkapital0*$M$13/100,"") -> 257.1280618 | K27: 2401.269132 | L27: 1680.888393 | M27: 0.763728161 | N27: 2200.898799
D28: 5 | E28: 2019 | F28: 347.7822223 | G28: 10433.46667 | H28: 7321.758454 | I28: 3111.708215 | J28: =IF(D28<=SimZeit-1,Fremdkapital0*$N$13/100,"") -> 274.8016623 | K28: 2836.906552 | L28: 1985.834587 | M28: 0.7139593835 | N28: 2781.439158
D29: 6 | E29: 2020 | F29: 358.215689 | G29: 10746.47067 | H29: 7175.323285 | I29: =IF(D29<=SimZeit-1,G29-H29,"") -> 3571.147384 | J29: 274.8016623 | K29: 3296.345721 | L29: 2307.442005 | M29: 0.6674338165 | N29: 3457.18474
D30: 7 | E30: 2021 | F30: 368.9621596 | G30: 11068.86479 | H30: 7031.816819 | I30: 4037.04797 | J30: 274.8016623 | K30: 3762.246307 | L30: 2633.572415 | M30: 0.6239401143 | N30: 4220.873694
E31: 2022
M34: Summe | N34: =SUM(N23:N33) -> 16805.45854

Sheet EW_Diagramme (hidden)
C4: =Einfuehrung!C4 -> Betriebswirtschaftliche Kennzahlen
C6: Diagramme zu Simulationsergebnissen
